bitfinex/quotes_BTCUSD_20240803
["timestamp","ask_amount","ask_price","bid_price","bid_amount"]
[1722643343058,0.65716,61569.0,61568.0,0.379449]
[1722643343259,0.65516,61569.0,61568.0,0.55090824]
[1722643343484,0.65516,61569.0,61568.0,0.393449]
[1722643344381,0.65516,61569.0,61568.0,0.79454124]
[1722643344590,0.65516,61569.0,61568.0,1.03817424]
[1722643345006,0.48726,61569.0,61568.0,1.28180724]
[1722643345213,0.48726,61569.0,61568.0,1.51380013]
[1722643345431,0.48726,61569.0,61568.0,1.27016713]
[1722643345634,0.48726,61569.0,61568.0,1.53680013]
[1722643345837,0.48726,61569.0,61568.0,1.52280013]
[1722643346217,0.48706455,61569.0,61568.0,1.53680013]
[1722643346475,0.48706455,61569.0,61568.0,1.78043313]
[1722643346681,0.48706455,61569.0,61568.0,1.53680013]
[1722643347081,0.48706455,61569.0,61568.0,1.52280013]
[1722643347572,0.48706455,61569.0,61568.0,1.53680013]
[1722643347946,0.50706455,61569.0,61568.0,1.53680013]
[1722643348147,0.48706455,61569.0,61568.0,1.52280013]
[1722643348367,0.50706455,61569.0,61568.0,1.53680013]
[1722643348705,0.48706455,61569.0,61568.0,1.53680013]
[1722643348912,0.48706455,61569.0,61568.0,1.52280013]
[1722643349117,0.50706455,61569.0,61568.0,1.52280013]
[1722643349316,0.57266455,61569.0,61568.0,0.78054124]
[1722643349517,0.57266455,61569.0,61568.0,0.53690824]
[1722643349845,0.57266455,61569.0,61568.0,0.79454124]
[1722643350656,0.57466455,61569.0,61568.0,0.79454124]
[1722643350808,0.57466455,61569.0,61568.0,0.79413503]
[1722643350809,0.57266455,61569.0,61568.0,0.79413503]
[1722643351008,0.57266455,61569.0,61568.0,1.03776803]
[1722643351436,0.50706455,61569.0,61568.0,1.02376803]
[1722643351935,0.50706455,61569.0,61568.0,1.03776803]
[1722643352153,0.50706455,61569.0,61568.0,0.52250203]
[1722643352154,0.50906455,61569.0,61568.0,0.52250203]
[1722643352361,0.56926455,61569.0,61568.0,0.52250203]
[1722643352719,0.50706455,61569.0,61568.0,0.79413503]
[1722643352919,0.50906455,61569.0,61568.0,0.78013503]
[1722643353123,0.50906455,61569.0,61568.0,0.76613503]
[1722643353339,0.50906455,61569.0,61568.0,0.78013503]
[1722643354696,0.50706455,61569.0,61568.0,0.79413503]
[1722643355123,0.50706455,61569.0,61568.0,1.03776803]
[1722643355351,0.50906455,61569.0,61568.0,0.79413503]
[1722643355730,0.50906455,61569.0,61568.0,0.85917103]
[1722643356449,0.50906455,61569.0,61568.0,0.70171179]
[1722643360556,0.50706455,61569.0,61568.0,0.70171179]
[1722643361963,0.50706455,61569.0,61568.0,0.093036]
[1722643361964,0.50906455,61569.0,61568.0,0.093036]
[1722643362173,0.64676455,61569.0,61568.0,0.093036]
[1722643362625,0.64676455,61569.0,61568.0,0.028]
[1722643362626,0.65676455,61569.0,61568.0,0.028]
[1722643362871,0.64676455,61569.0,61568.0,0.028]
[1722643363087,0.64676455,61569.0,61568.0,0.014]
[1722643363088,0.65676455,61569.0,61568.0,0.014]
[1722643363291,0.02,61550.0,61549.0,0.121854]
[1722643363442,0.50706455,61550.0,61549.0,0.62331037]
[1722643363802,0.50706455,61550.0,61549.0,0.121854]
[1722643363803,0.50906455,61550.0,61549.0,0.121854]
[1722643364003,0.022,61545.0,61536.0,0.4681]
[1722643364180,0.02,61537.0,61536.0,0.609397]
[1722643364334,0.50706455,61537.0,61536.0,0.70970544]
[1722643364533,0.50706455,61537.0,61536.0,0.86716468]
[1722643364835,0.50706455,61537.0,61536.0,0.93222868]
[1722643365034,0.50906455,61537.0,61536.0,0.34440224]
[1722643365438,0.50906455,61537.0,61536.0,0.58816124]
[1722643365635,0.50906455,61537.0,61536.0,0.34440224]
[1722643365838,0.50906455,61537.0,61536.0,0.35840224]
[1722643366224,0.50906455,61537.0,61536.0,0.093064]
[1722643366672,0.50906455,61537.0,61536.0,0.079064]
[1722643366918,0.57126455,61537.0,61536.0,0.079064]
[1722643367118,0.57126455,61537.0,61536.0,0.065064]
[1722643368108,0.57126455,61537.0,61536.0,0.186943]
[1722643368109,0.56926455,61537.0,61536.0,0.186943]
[1722643368326,0.56926455,61537.0,61536.0,0.430702]
[1722643368571,0.56926455,61537.0,61536.0,0.079064]
[1722643368886,0.57126455,61537.0,61536.0,0.186943]
[1722643369007,0.57126455,61537.0,61536.0,0.079064]
[1722643369210,0.57126455,61537.0,61536.0,0.093064]
[1722643369593,0.57126455,61537.0,61536.0,0.186943]
[1722643369768,0.57126455,61537.0,61536.0,0.200943]
[1722643370301,0.57126455,61537.0,61536.0,0.186943]
[1722643370494,0.57126455,61537.0,61536.0,0.200943]
[1722643370690,0.57126455,61537.0,61536.0,0.093064]
[1722643370927,0.58126455,61537.0,61536.0,0.093064]
[1722643371503,0.65956455,61537.0,61536.0,0.093064]
[1722643371705,0.65956455,61537.0,61536.0,0.014]
[1722643371937,0.022,61524.0,61523.0,0.618675]
[1722643372148,0.022,61524.0,61523.0,0.77613424]
[1722643372149,0.50906455,61524.0,61523.0,0.77613424]
[1722643372350,0.50706455,61524.0,61523.0,0.77613424]
[1722643372477,0.50706455,61524.0,61523.0,1.08024524]
[1722643373109,0.50906455,61524.0,61523.0,0.83643424]
[1722643373340,0.50906455,61524.0,61523.0,0.60662324]
[1722643373673,0.50906455,61524.0,61523.0,0.83643424]
[1722643373674,0.50706455,61524.0,61523.0,0.83643424]
[1722643373831,0.50706455,61524.0,61523.0,0.85043424]
[1722643374864,0.50906455,61524.0,61523.0,0.86443424]
[1722643375363,0.50706455,61524.0,61523.0,0.86443424]
[1722643375921,0.50706455,61524.0,61523.0,1.10824524]
[1722643376709,0.50906455,61524.0,61523.0,1.10824524]
[1722643376911,0.50906455,61524.0,61523.0,0.86443424]
[1722643377978,0.50706455,61524.0,61523.0,1.10824524]
[1722643378384,0.35703255,61524.0,61523.0,1.49615624]
[1722643378582,0.17572199,61524.0,61523.0,1.69732404]
[1722643378782,0.17572199,61524.0,61523.0,1.94113504]
[1722643379002,0.141492,61524.0,61523.0,1.94113504]
[1722643379203,0.02,61546.0,61545.0,1.178658]
[1722643379405,0.02,61549.0,61548.0,0.60928]
[1722643379605,0.02,61549.0,61548.0,1.11045124]
[1722643379809,0.50742,61549.0,61548.0,1.11045124]
[1722643381721,0.50742,61549.0,61548.0,1.13845124]
[1722643381923,0.50742,61549.0,61548.0,1.14745124]
[1722643382132,0.50742,61549.0,61548.0,0.25745924]
[1722643382327,0.50942,61549.0,61548.0,0.17145924]
[1722643382485,0.56972,61549.0,61548.0,0.028]
[1722643382696,0.87492,61549.0,61548.0,0.028]
[1722643382905,0.95322,61549.0,61548.0,0.028]
[1722643383101,0.95322,61549.0,61523.0,0.15135]
[1722643383102,0.022,61529.0,61524.0,0.243806]
[1722643383306,0.022,61526.0,61525.0,0.52316124]
[1722643383513,0.50742,61526.0,61525.0,0.76696424]
[1722643383737,0.50942,61526.0,61525.0,0.52316124]
[1722643383940,0.50942,61526.0,61523.0,0.435166]
[1722643383941,0.022,61524.0,61523.0,0.435166]
[1722643384139,0.50942,61524.0,61523.0,0.59262524]
[1722643384372,0.50942,61524.0,61523.0,0.22690924]
[1722643385112,0.50942,61524.0,61523.0,0.34881424]
[1722643385745,0.50942,61524.0,61523.0,0.36281424]
[1722643385952,0.51042,61524.0,61523.0,0.49772024]
[1722643386128,0.51042,61524.0,61523.0,0.61962524]
[1722643386525,0.51042,61524.0,61523.0,0.36181424]
[1722643386932,0.51042,61524.0,61523.0,0.37581424]
[1722643387136,0.51042,61524.0,61523.0,0.09645]
[1722643387137,0.52042,61524.0,61523.0,0.09645]
[1722643387311,0.65902,61524.0,61523.0,0.03615]
[1722643387512,0.67802,61524.0,61523.0,0.02315]
[1722643387729,0.67902,61524.0,61523.0,0.03515]
[1722643387930,0.65902,61524.0,61523.0,0.03515]
[1722643388355,0.65802,61524.0,61523.0,0.02315]
[1722643388755,0.66202,61524.0,61523.0,0.00915]
[1722643388967,0.67151132,61524.0,61523.0,0.02315]
[1722643389154,0.66751132,61524.0,61523.0,0.02315]
[1722643389535,0.66751132,61524.0,61523.0,0.04015]
[1722643389730,0.66751132,61524.0,61523.0,0.01315]
[1722643389935,1.01637056,61524.0,61523.0,0.01315]
[1722643390166,1.11637056,61524.0,61523.0,0.01815]
[1722643390534,0.65751132,61524.0,61523.0,0.01815]
[1722643390741,0.66751132,61524.0,61523.0,0.01415]
[1722643391239,0.67251132,61524.0,61523.0,0.01415]
[1722643391662,1.01137056,61524.0,61523.0,0.00915]
[1722643391824,1.02137056,61524.0,61523.0,0.00915]
[1722643392019,1.02137056,61524.0,61523.0,0.01315]
[1722643392020,1.14327356,61524.0,61523.0,0.01315]
[1722643392220,1.14327356,61524.0,61523.0,0.00915]
[1722643392221,1.33274585,61524.0,61523.0,0.00915]
[1722643392445,1.56974396,61524.0,61523.0,0.00915]
[1722643392704,1.56974396,61524.0,61523.0,0.02015]
[1722643392705,1.81355096,61524.0,61523.0,0.02015]
[1722643392954,0.3696,61518.0,61517.0,0.00915]
[1722643393069,1.49455136,61518.0,61517.0,0.00915]
[1722643393294,0.042,61507.0,61504.0,0.00915]
[1722643393495,0.96488545,61507.0,61504.0,0.00915]
[1722643393696,0.66562,61507.0,61504.0,0.00915]
[1722643394141,0.67562,61507.0,61504.0,0.00915]
[1722643394462,1.30967924,61507.0,61504.0,0.00915]
[1722643394669,1.39967924,61507.0,61504.0,0.00915]
[1722643395071,1.38967924,61507.0,61506.0,0.01315]
[1722643395274,0.76562,61507.0,61506.0,0.01315]
[1722643395651,0.76562,61507.0,61506.0,0.00915]
[1722643395898,1.39967924,61507.0,61506.0,0.00915]
[1722643396085,0.94702,61507.0,61506.0,0.00915]
[1722643396260,0.94802,61507.0,61506.0,0.02215]
[1722643396465,0.94702,61507.0,61506.0,0.01315]
[1722643396842,0.94802,61507.0,61506.0,0.02215]
[1722643397022,0.94702,61507.0,61506.0,0.01315]
[1722643397229,0.65562,61507.0,61506.0,0.01315]
[1722643397434,0.51042,61507.0,61506.0,0.143089]
[1722643397634,0.51042,61507.0,61506.0,0.02115]
[1722643397922,0.51042,61507.0,61506.0,0.382967]
[1722643398122,0.50842,61507.0,61506.0,1.02818224]
[1722643398324,0.50842,61507.0,61506.0,1.02918224]
[1722643398665,0.50842,61507.0,61506.0,1.02818224]
[1722643398869,0.50842,61507.0,61506.0,0.78430424]
[1722643399194,0.50942,61507.0,61506.0,1.03618224]
[1722643399447,0.50842,61507.0,61506.0,1.02818224]
[1722643399715,0.50842,61507.0,61506.0,1.10818224]
[1722643399965,0.50842,61507.0,61506.0,1.09818224]
[1722643400226,0.50942,61507.0,61506.0,1.11218224]
[1722643400428,0.50942,61507.0,61506.0,1.09818224]
[1722643400429,0.50842,61507.0,61506.0,1.09818224]
[1722643400841,0.50842,61507.0,61506.0,1.40716024]
[1722643401057,0.50942,61507.0,61506.0,1.42116024]
[1722643401184,0.48942,61507.0,61506.0,1.92163653]
[1722643401383,0.48942,61507.0,61506.0,1.67775853]
[1722643401647,0.48942,61507.0,61506.0,1.66375853]
[1722643401648,0.48842,61507.0,61506.0,1.66375853]
[1722643401845,0.48842,61507.0,61506.0,1.69175853]
[1722643401846,0.49042,61507.0,61506.0,1.69175853]
[1722643402184,0.48842,61507.0,61506.0,1.67426053]
[1722643402380,0.48842,61507.0,61506.0,1.64169053]
[1722643402606,0.48842,61507.0,61506.0,1.65569053]
[1722643402889,0.48942,61507.0,61506.0,1.64169053]
[1722643403092,0.49042,61507.0,61506.0,1.89956853]
[1722643403335,0.48942,61507.0,61506.0,1.55466224]
[1722643403533,0.48942,61507.0,61506.0,1.6868982]
[1722643403740,0.49042,61507.0,61506.0,1.60123224]
[1722643403939,0.48942,61507.0,61506.0,1.68689581]
[1722643404152,0.48942,61507.0,61506.0,1.65432581]
[1722643404391,0.49042,61507.0,61506.0,1.66832581]
[1722643405161,0.48842,61507.0,61506.0,1.91638494]
[1722643405415,0.48742,61507.0,61506.0,1.65850694]
[1722643405931,0.48842,61507.0,61506.0,1.67250694]
[1722643406375,0.50942,61507.0,61506.0,1.68650694]
[1722643406849,0.46684573,61507.0,61506.0,1.67250694]
[1722643407103,0.46684573,61507.0,61506.0,0.85080624]
[1722643407104,0.48584573,61507.0,61506.0,0.85080624]
[1722643407375,0.48584573,61507.0,61506.0,1.10868424]
[1722643407376,0.48684573,61507.0,61506.0,1.10868424]
[1722643407846,0.46584573,61507.0,61506.0,1.19341582]
[1722643408135,0.48684573,61507.0,61506.0,1.20741582]
[1722643408352,0.46684573,61507.0,61506.0,1.20741582]
[1722643408581,0.46684573,61507.0,61506.0,1.33041582]
[1722643408582,0.48584573,61507.0,61506.0,1.33041582]
[1722643408806,0.46684573,61507.0,61506.0,1.33041582]
[1722643409036,0.46784573,61507.0,61506.0,1.33041582]
[1722643409266,0.46884573,61507.0,61506.0,1.34441582]
[1722643409495,0.46684573,61507.0,61506.0,1.60686382]
[1722643409938,0.46784573,61507.0,61506.0,1.62086382]
[1722643410874,0.46684573,61507.0,61506.0,1.60686382]
[1722643411101,0.46584573,61507.0,61506.0,1.59237215]
[1722643411307,0.46784573,61507.0,61506.0,1.62037215]
[1722643411557,0.48784573,61507.0,61506.0,1.34392415]
[1722643411731,0.48784573,61507.0,61506.0,0.28505024]
[1722643411732,0.48584573,61507.0,61506.0,0.28505024]
[1722643411942,0.48584573,61507.0,61506.0,0.16311124]
[1722643412143,0.48584573,61507.0,61506.0,0.033652]
[1722643412144,0.48784573,61507.0,61506.0,0.033652]
[1722643412715,0.48584573,61507.0,61506.0,0.005652]
[1722643412998,0.48684573,61507.0,61506.0,0.019652]
[1722643413224,0.48884573,61507.0,61506.0,0.019652]
[1722643413594,0.48884573,61507.0,61506.0,0.141591]
[1722643413803,0.48884573,61507.0,61506.0,0.019652]
[1722643414612,0.48784573,61507.0,61506.0,0.005652]
[1722643414814,0.48784573,61507.0,61506.0,0.019652]
[1722643414815,0.48884573,61507.0,61506.0,0.019652]
[1722643415013,0.48984573,61507.0,61506.0,0.014652]
[1722643415215,0.48884573,61507.0,61506.0,0.014652]
[1722643415380,0.48784573,61507.0,61506.0,0.005652]
[1722643415811,0.48884573,61507.0,61506.0,0.016652]
[1722643416028,0.80884573,61507.0,61506.0,0.030652]
[1722643416457,0.81884573,61507.0,61506.0,0.030652]
[1722643416651,0.91884573,61507.0,61506.0,0.030652]
[1722643416854,0.90784573,61507.0,61506.0,0.019652]
[1722643417057,1.08530497,61507.0,61506.0,0.019652]
[1722643417444,1.07530497,61507.0,61506.0,0.016652]
[1722643417656,1.07630497,61507.0,61506.0,0.030652]
[1722643417831,1.06530497,61507.0,61506.0,0.005652]
[1722643418038,0.90684573,61507.0,61506.0,0.005652]
[1722643418248,0.90684573,61507.0,61506.0,0.026652]
[1722643418249,0.91884573,61507.0,61506.0,0.026652]
[1722643418454,0.90884573,61507.0,61506.0,0.026652]
[1722643418585,0.90784573,61507.0,61506.0,0.017652]
[1722643418790,0.91765655,61507.0,61506.0,0.017652]
[1722643418989,0.91765655,61507.0,61506.0,0.020652]
[1722643419431,0.90765655,61507.0,61506.0,0.020652]
[1722643419806,0.63615655,61507.0,61506.0,0.020652]
[1722643420360,0.62634573,61507.0,61506.0,0.020652]
[1722643421302,0.54924573,61507.0,61506.0,0.020652]
[1722643422065,0.54924573,61507.0,61506.0,0.017652]
[1722643422482,0.54824573,61507.0,61506.0,0.005652]
[1722643423585,0.54924573,61507.0,61506.0,0.016652]
[1722643424030,0.54824573,61507.0,61506.0,0.005652]
[1722643424464,0.54824573,61507.0,61506.0,0.013652]
[1722643424465,0.54924573,61507.0,61506.0,0.013652]
[1722643424575,0.54924573,61507.0,61506.0,0.149591]
[1722643424793,0.54924573,61507.0,61506.0,0.393469]
[1722643424991,0.54824573,61507.0,61506.0,0.127591]
[1722643425209,0.54824573,61507.0,61506.0,0.78280624]
[1722643425210,0.48684573,61507.0,61506.0,0.78280624]
[1722643425436,0.48684573,61507.0,61506.0,1.04068424]
[1722643425646,0.48684573,61507.0,61506.0,0.78280624]
[1722643426070,0.48684573,61507.0,61506.0,0.79680624]
[1722643426277,0.48684573,61507.0,61506.0,0.78280624]
[1722643426533,0.48584573,61507.0,61506.0,0.78680624]
[1722643426848,0.48684573,61507.0,61506.0,0.79880624]
[1722643427374,0.48584573,61507.0,61506.0,0.78680624]
[1722643427781,0.48684573,61507.0,61506.0,0.80080624]
[1722643428601,0.48684573,61507.0,61506.0,0.31305024]
[1722643428816,0.48684573,61507.0,61506.0,0.399469]
[1722643429026,0.48684573,61507.0,61506.0,0.033652]
[1722643429814,0.48884573,61507.0,61506.0,0.033652]
[1722643430810,0.48884573,61507.0,61506.0,0.399469]
[1722643431226,0.48884573,61507.0,61506.0,0.643347]
[1722643432057,0.48684573,61507.0,61506.0,1.04468424]
[1722643432629,0.48684573,61507.0,61506.0,1.19308424]
[1722643433213,0.48684573,61507.0,61506.0,1.04468424]
[1722643434577,0.48684573,61507.0,61506.0,1.14425048]
[1722643434777,0.48684573,61507.0,61506.0,1.1442494]
[1722643435308,0.25312334,61507.0,61506.0,2.1242834]
[1722643435470,0.25312334,61507.0,61506.0,2.24739455]
[1722643435699,0.25312334,61507.0,61506.0,2.41315791]
[1722643435885,0.25312334,61507.0,61506.0,2.46176673]
[1722643436093,0.25312334,61507.0,61506.0,2.29562057]
[1722643436296,0.08953834,61507.0,61506.0,2.4004443]
[1722643436633,0.08953834,61507.0,61506.0,2.46302235]
[1722643436964,0.08953834,61507.0,61506.0,2.4144443]
[1722643437159,0.08953834,61507.0,61506.0,2.28162057]
[1722643437423,0.09053834,61507.0,61506.0,2.28162057]
[1722643437580,3.4e-07,61507.0,61506.0,2.20046513]
[1722643437784,3.4e-07,61507.0,61506.0,2.2679995]
[1722643437984,0.00091301,61517.0,61516.0,0.757925]
[1722643438195,0.00091301,61517.0,61516.0,0.65058404]
[1722643438416,0.48858301,61517.0,61516.0,1.62594004]
[1722643438577,0.49858301,61517.0,61516.0,1.62594004]
[1722643438815,0.48858301,61517.0,61516.0,1.62594004]
[1722643439980,0.48858301,61517.0,61516.0,1.60294004]
[1722643440184,0.48858301,61517.0,61516.0,1.21070104]
[1722643440185,0.50858301,61517.0,61516.0,1.21070104]
[1722643440383,0.48858301,61517.0,61516.0,0.86691224]
[1722643440791,0.48858301,61517.0,61516.0,1.12475124]
[1722643441195,0.48858301,61517.0,61516.0,1.21134702]
[1722643441399,0.48858301,61517.0,61516.0,1.2253467]
[1722643441643,0.48858301,61517.0,61516.0,1.12475124]
[1722643441796,0.48858301,61517.0,61516.0,1.22534638]
[1722643441996,0.48858301,61517.0,61516.0,1.23934638]
[1722643442218,0.50858301,61517.0,61516.0,1.23934638]
[1722643442625,0.50858301,61517.0,61516.0,1.22534638]
[1722643442829,0.50858301,61517.0,61516.0,1.21134638]
[1722643443025,0.50858301,61517.0,61516.0,1.22534638]
[1722643443508,0.50858301,61517.0,61516.0,1.12475124]
[1722643443726,0.49858301,61517.0,61516.0,1.13875124]
[1722643444050,0.48858301,61517.0,61516.0,1.13875124]
[1722643444262,0.48858301,61517.0,61516.0,1.22587448]
[1722643444467,0.48858301,61517.0,61516.0,1.21187448]
[1722643444669,0.48858301,61517.0,61516.0,1.22547745]
[1722643445083,0.50858301,61517.0,61516.0,1.12475124]
[1722643445212,0.50858301,61517.0,61516.0,1.13875124]
[1722643445406,0.50858301,61517.0,61516.0,1.12475124]
[1722643446014,0.48858301,61517.0,61516.0,1.12475124]
[1722643446423,0.48858301,61517.0,61516.0,1.15732124]
[1722643446626,0.48858301,61517.0,61516.0,1.11075124]
[1722643447069,0.48858301,61517.0,61516.0,1.12475124]
[1722643447487,0.50858301,61517.0,61516.0,1.12475124]
[1722643447683,0.49858301,61517.0,61516.0,1.36859024]
[1722643447839,0.49858301,61517.0,61516.0,1.5742425]
[1722643448039,0.48858301,61517.0,61516.0,1.5602425]
[1722643448234,0.48858301,61517.0,61516.0,1.5882425]
[1722643448650,0.48858301,61517.0,61516.0,1.6401425]
[1722643449085,0.48858301,61517.0,61516.0,1.6727125]
[1722643449249,0.48858301,61517.0,61516.0,1.3963035]
[1722643449456,0.48858301,61517.0,61516.0,1.4103035]
[1722643449651,0.48858301,61517.0,61516.0,1.3963035]
[1722643450350,0.48858301,61517.0,61516.0,1.3957602]
[1722643450554,0.48858301,61517.0,61516.0,1.3817602]
[1722643450755,0.48858301,61517.0,61516.0,1.6395992]
[1722643451485,0.48858301,61517.0,61516.0,1.6255992]
[1722643451709,0.48858301,61517.0,61516.0,1.3957602]
[1722643451915,0.50858301,61517.0,61516.0,1.4097602]
[1722643452114,0.50858301,61517.0,61516.0,1.3957602]
[1722643452316,0.50858301,61517.0,61516.0,0.7366822]
[1722643452514,0.50858301,61517.0,61516.0,0.55107324]
[1722643452849,0.50858301,61517.0,61516.0,0.53707324]
[1722643453056,0.50858301,61517.0,61516.0,0.79491224]
[1722643453175,0.50858301,61517.0,61516.0,0.78091224]
[1722643453612,0.50858301,61517.0,61516.0,0.53790324]
[1722643453803,0.50858301,61517.0,61516.0,0.79574224]
[1722643454275,0.50858301,61517.0,61516.0,0.76774224]
[1722643454412,0.50858301,61517.0,61516.0,1.11141368]
[1722643454413,0.48858301,61517.0,61516.0,1.11141368]
[1722643454615,0.50858301,61517.0,61516.0,1.13941368]
[1722643454825,0.50858301,61517.0,61516.0,1.12541368]
[1722643455234,0.50858301,61517.0,61516.0,1.13941368]
[1722643455835,0.48858301,61517.0,61516.0,1.23941368]
[1722643456037,0.48858301,61517.0,61516.0,1.34481368]
[1722643456238,0.48858301,61517.0,61516.0,1.35881368]
[1722643456731,0.48858301,61517.0,61516.0,1.60265268]
[1722643456847,0.48858301,61517.0,61516.0,1.58865268]
[1722643457042,0.48858301,61517.0,61516.0,1.60265268]
[1722643457252,0.48858301,61517.0,61516.0,1.66715268]
[1722643457460,0.02,61536.0,61529.0,0.1469]
[1722643457682,0.02,61539.0,61538.0,0.365626]
[1722643457887,0.02,61547.0,61546.0,0.1218]
[1722643458105,0.02,61547.0,61546.0,0.76669924]
[1722643458307,0.02,61547.0,61546.0,1.01041924]
[1722643458509,0.50744,61547.0,61546.0,1.01041924]
[1722643459849,0.50744,61547.0,61546.0,1.02441924]
[1722643460213,0.50744,61547.0,61546.0,1.03841924]
[1722643462229,0.50744,61547.0,61546.0,1.13841924]
[1722643462851,0.50744,61547.0,61546.0,0.89469924]
[1722643463267,0.50744,61547.0,61546.0,0.28545924]
[1722643463472,0.50744,61547.0,61546.0,0.24986]
[1722643463473,0.50944,61547.0,61546.0,0.24986]
[1722643463671,0.50944,61547.0,61546.0,0.028]
[1722643464048,0.65234,61547.0,61546.0,0.028]
[1722643465024,0.65234,61547.0,61546.0,0.014]
[1722643465235,0.65234,61547.0,61546.0,0.028]
[1722643465439,0.65234,61547.0,61546.0,0.014]
[1722643465440,0.66234,61547.0,61546.0,0.014]
[1722643465664,0.65234,61547.0,61546.0,0.028]
[1722643465862,0.66234,61547.0,61546.0,0.028]
[1722643466505,0.66234,61547.0,61546.0,0.014]
[1722643466724,0.65234,61547.0,61546.0,0.021]
[1722643467067,0.65234,61547.0,61546.0,0.007]
[1722643467535,0.65234,61547.0,61546.0,0.021]
[1722643467721,0.65234,61547.0,61546.0,0.007]
[1722643467934,0.65234,61547.0,61527.0,0.243795]
[1722643467935,0.02,61532.0,61527.0,0.243795]
[1722643468130,0.64013624,61547.0,61516.0,0.00083]
[1722643468131,0.02,61521.0,61520.0,0.365734]
[1722643468335,0.50744,61521.0,61520.0,0.86561258]
[1722643469867,0.50744,61521.0,61520.0,0.97961258]
[1722643470429,0.50744,61521.0,61520.0,0.99361258]
[1722643471399,0.50744,61521.0,61520.0,0.89501624]
[1722643471612,0.48744,61521.0,61520.0,1.23745805]
[1722643471829,0.48744,61521.0,61520.0,1.53685105]
[1722643472206,0.48744,61521.0,61520.0,1.50428105]
[1722643472541,0.48744,61521.0,61520.0,1.53685105]
[1722643472956,0.48744,61521.0,61520.0,1.50428105]
[1722643473997,0.48744,61521.0,61520.0,1.53685105]
[1722643474209,0.48744,61521.0,61520.0,1.9946037]
[1722643474655,0.324895,61521.0,61520.0,2.12434876]
[1722643474863,0.324895,61521.0,61520.0,2.05533375]
[1722643475062,0.324895,61521.0,61520.0,2.12284954]
[1722643475758,0.324895,61521.0,61520.0,1.87902654]
[1722643476036,0.324895,61521.0,61520.0,1.99340849]
[1722643476279,0.03801122,61521.0,61520.0,1.99340849]
[1722643476479,0.076,61554.0,61520.0,1.99340849]
[1722643476480,0.02,61548.0,61547.0,0.853006]
[1722643476697,0.97994164,61548.0,61547.0,1.01046524]
[1722643476899,0.50743,61548.0,61547.0,1.10842011]
[1722643477293,0.50743,61548.0,61547.0,1.23142011]
[1722643477294,0.48743,61548.0,61547.0,1.23142011]
[1722643477593,0.48743,61548.0,61547.0,1.47513611]
[1722643477765,0.48743,61548.0,61547.0,1.6282726]
[1722643477969,0.48743,61548.0,61547.0,1.9854586]
[1722643478170,0.48743,61548.0,61547.0,1.7555568]
[1722643478371,0.48743,61548.0,61547.0,1.82305289]
[1722643478544,0.48743,61548.0,61547.0,1.7555568]
[1722643479026,0.48743,61548.0,61547.0,1.68192031]
[1722643480515,0.48743,61548.0,61547.0,1.66792031]
[1722643480912,0.48743,61548.0,61547.0,1.43820431]
[1722643481247,0.48743,61548.0,61547.0,1.34013431]
[1722643482786,0.48743,61548.0,61547.0,1.45145625]
[1722643482981,0.48743,61548.0,61547.0,1.61642031]
[1722643483189,0.38743,61548.0,61547.0,1.61642031]
[1722643483592,0.38743,61548.0,61547.0,1.79763225]
[1722643484793,0.224957,61548.0,61547.0,2.14533299]
[1722643485011,0.19957575,61548.0,61547.0,3.09904817]
[1722643485222,0.00083,61549.0,61548.0,1.06821688]
[1722643485420,0.075476,61579.0,61548.0,1.06821688]
[1722643485421,0.00157439,61575.0,61568.0,0.202562]
[1722643485629,0.497336,61569.0,61568.0,0.72665424]
[1722643485836,0.497336,61569.0,61568.0,1.55579397]
[1722643486039,0.497336,61569.0,61568.0,1.31216097]
[1722643486249,0.497336,61569.0,61568.0,1.21392024]
[1722643487093,0.497336,61569.0,61568.0,1.34418525]
[1722643487240,0.497336,61569.0,61568.0,1.58781825]
[1722643487654,0.497336,61569.0,61568.0,1.84545125]
[1722643487874,0.497336,61569.0,61568.0,1.91291916]
[1722643488053,0.497336,61569.0,61568.0,1.66928616]
[1722643488253,0.497336,61569.0,61568.0,1.91291916]
[1722643488462,0.497336,61569.0,61568.0,2.61691251]
[1722643488689,0.497336,61569.0,61568.0,2.6703771]
[1722643488889,0.497336,61569.0,61568.0,2.6563771]
[1722643489149,0.497336,61569.0,61568.0,2.46313369]
[1722643489304,0.432368,61569.0,61568.0,2.46313369]
[1722643489506,0.334916,61569.0,61568.0,2.98256685]
[1722643489684,0.334916,61569.0,61568.0,3.03295644]
[1722643490249,0.334916,61569.0,61568.0,3.04695644]
[1722643490596,0.334916,61569.0,61568.0,2.99021401]
[1722643490822,0.172496,61569.0,61568.0,3.24784701]
[1722643491017,0.14882519,61569.0,61568.0,3.19745742]
[1722643491368,0.00959895,61579.0,61578.0,1.368838]
[1722643491577,0.00959895,61579.0,61578.0,1.67513183]
[1722643491767,0.49677895,61579.0,61578.0,1.57781583]
[1722643491970,0.49677895,61579.0,61578.0,1.67494073]
[1722643492177,0.49677895,61579.0,61578.0,1.61284073]
[1722643492390,0.49677895,61579.0,61578.0,1.46532624]
[1722643494158,0.49677895,61579.0,61578.0,1.52648816]
[1722643494425,0.49677895,61579.0,61578.0,1.47932624]
[1722643494594,0.49677895,61579.0,61578.0,1.49332624]
[1722643495036,0.33438395,61579.0,61578.0,2.02991948]
[1722643495239,0.045,61590.0,61589.0,0.962991]
[1722643495454,0.045,61590.0,61589.0,2.18485451]
[1722643495670,0.01006501,61600.0,61599.0,0.852285]
[1722643495867,0.01006501,61600.0,61599.0,1.35692424]
[1722643496065,0.01006501,61600.0,61599.0,2.18771867]
[1722643496066,0.49708501,61600.0,61599.0,2.18771867]
[1722643496272,0.49708501,61600.0,61599.0,1.94420867]
[1722643497791,0.49708501,61600.0,61599.0,1.91076489]
[1722643497994,0.49708501,61600.0,61599.0,2.19986489]
[1722643498250,0.49708501,61600.0,61599.0,2.15423378]
[1722643498449,0.49708501,61600.0,61599.0,2.20886489]
[1722643498648,0.49708501,61600.0,61599.0,2.48349015]
[1722643498882,0.49708501,61600.0,61599.0,2.70605775]
[1722643499161,0.49708501,61600.0,61599.0,2.75259832]
[1722643499347,0.49708501,61600.0,61599.0,2.81469832]
[1722643500103,0.49708501,61600.0,61599.0,2.76648241]
[1722643500502,0.49708501,61600.0,61599.0,2.31728241]
[1722643500672,0.49708501,61600.0,61599.0,2.07377241]
[1722643500911,0.49708501,61600.0,61599.0,2.08177241]
[1722643501056,0.49708501,61600.0,61599.0,2.07377241]
[1722643501264,0.50708501,61600.0,61599.0,1.82072184]